fUSD/lending_fUSD_20240523
["ID","MTS","AMOUNT","RATE_DAILY","PERIOD"]
[327814847,1716501033290,-19151.0,0.000209,2]
[327814848,1716501033301,-260.79473481,0.000209,2]
[327814849,1716501033313,-6076.16054721,0.000209,2]
[327814850,1716501033324,-13587.47985227,0.000209,2]
[327814851,1716501033335,-25580.98197186,0.000209,2]
[327814855,1716501039075,-1015.51745945,0.000209,2]
[327814858,1716501039087,-7611.32758098,0.000209,2]
[327814882,1716501041767,-22404.94731714,0.000209,2]
[327814884,1716501041776,-321.41289655,0.000209,2]
[327814885,1716501041786,-750.0,0.00021,2]
[327814886,1716501041795,-923.2,0.0002101,2]
[327814887,1716501041804,-628.0,0.000211,2]
[327814888,1716501041814,-1478.52,0.00021305,2]
[327814890,1716501041823,-159.26249912,0.00021339,2]
[327814891,1716501041834,-1163.27,0.0002179,2]
[327814892,1716501041843,-500.0,0.000219,7]
[327814893,1716501041852,-6772.86623355,0.000219,2]
[327814894,1716501041863,-802.34337686,0.000219,2]
[327814895,1716501041873,-158.45359649,0.00021916,2]
[327814896,1716501041883,-234.2897403,0.00021916,2]
[327814897,1716501041891,-155.0,0.00021916,2]
[327814898,1716501041900,-500.0,0.00021917,2]
[327814899,1716501041909,-500.0,0.00021917,2]
[327814900,1716501041918,-500.0,0.00021917,2]
[327814901,1716501041927,-500.0,0.00021917,2]
[327814902,1716501041936,-500.0,0.00021917,2]
[327814903,1716501041945,-500.0,0.00021917,2]
[327814904,1716501041954,-500.0,0.00021917,2]
[327814905,1716501041963,-517.12014852,0.00021917,2]
[327814906,1716501041972,-412.80902214,0.00021917,2]
[327814907,1716501041981,-500.0,0.00021917,2]
[327814908,1716501041991,-309.47801751,0.00021917,2]
[327814909,1716501042000,-190.99524269,0.00021917,2]
[327814910,1716501042009,-500.0,0.00021917,2]
[327814911,1716501042018,-500.0,0.00021917,2]
[327814912,1716501042027,-219.5,0.00021917,2]
[327814913,1716501042036,-263.3519575,0.00021917,2]
[327814914,1716501042048,-236.6480425,0.00021917,2]
[327814915,1716501042057,-500.0,0.00021917,2]
[327814916,1716501042066,-500.0,0.00021917,2]
[327814917,1716501042075,-500.0,0.00021917,2]
[327814918,1716501042084,-500.0,0.00021917,2]
[327814919,1716501042092,-500.0,0.00021917,2]
[327814920,1716501042102,-500.0,0.00021917,2]
[327814921,1716501042113,-202.56,0.00021917,2]
[327814922,1716501042127,-197.51016814,0.00021917,2]
[327814932,1716501042924,-328.08983186,0.00021917,2]
[327814935,1716501042934,-500.0,0.00021917,2]
[327814938,1716501042944,-155.0,0.00021917,2]
[327814941,1716501042953,-500.0,0.00021917,2]
[327814944,1716501042964,-500.0,0.00021917,2]
[327814947,1716501042980,-487.89002462,0.00021917,2]
[327814950,1716501042997,-12.10997538,0.00021917,2]
[327814952,1716501043006,-367.65642462,0.00021917,2]
[327814954,1716501043018,-259.03357538,0.00021917,2]
[327814955,1716501043028,-500.0,0.00021917,2]
[327814957,1716501043039,-5.19182462,0.00021917,2]
[327814961,1716501043584,-352.66667303,0.00021917,2]
[327814962,1716501043594,-500.0,0.00021917,2]
[327814963,1716501043606,-500.0,0.00021917,2]
[327814964,1716501043617,-493.69535265,0.00021917,2]
[327814965,1716501043628,-6.30464735,0.00021917,2]
[327814966,1716501043637,-405.33056685,0.00021917,2]
[327814967,1716501043647,-56.80628579,0.00021917,2]
[327814968,1716501043718,-1e-08,0.00021917,2]
[327814969,1716501043984,-443.1937142,0.00021917,2]
[327814974,1716501043995,-500.0,0.00021917,2]
[327814978,1716501044004,-500.0,0.00021917,2]
[327814982,1716501044015,-500.0,0.00021917,2]
[327814985,1716501044025,-500.0,0.00021917,2]
[327814988,1716501044035,-279.97244168,0.00021917,2]
[327814991,1716501044045,-625.31,0.00021917,2]
[327814994,1716501044055,-205.21009177,0.00021917,2]
[327814997,1716501044064,-500.0,0.00021917,2]
[327815000,1716501044078,-500.0,0.00021917,2]
[327815002,1716501044089,-500.0,0.00021917,2]
[327815004,1716501044099,-30.91001378,0.00021917,2]
[327815007,1716501044113,-469.08998622,0.00021917,2]
[327815009,1716501044128,-239.34312076,0.00021917,2]
[327815010,1716501044140,-260.65687924,0.00021917,2]
[327815011,1716501044149,-500.0,0.00021917,2]
[327815012,1716501044159,-500.0,0.00021917,2]
[327815013,1716501044169,-500.0,0.00021917,2]
[327815014,1716501044179,-500.0,0.00021917,2]
[327815015,1716501044189,-500.0,0.00021917,2]
[327815016,1716501044198,-500.0,0.00021917,2]
[327815017,1716501044210,-500.0,0.00021917,2]
[327815018,1716501044220,-310.55,0.00021917,2]
[327815019,1716501044230,-500.0,0.00021917,2]
[327815020,1716501044241,-500.0,0.00021917,2]
[327815021,1716501044251,-500.0,0.00021917,2]
[327815022,1716501044260,-223.0,0.00021917,2]
[327815023,1716501044270,-500.0,0.00021917,2]
[327815024,1716501044279,-500.0,0.00021917,2]
[327815025,1716501044289,-500.0,0.00021917,2]
[327815026,1716501044299,-500.0,0.00021917,2]
[327815027,1716501044309,-500.0,0.00021917,2]
[327815028,1716501044318,-500.0,0.00021917,2]
[327815029,1716501044328,-500.0,0.00021917,2]
[327815030,1716501044338,-407.90185013,0.00021917,2]
[327815031,1716501044348,-257.84,0.00021917,2]
[327815032,1716501044359,-500.0,0.00021917,2]
[327815033,1716501044369,-500.0,0.00021917,2]
[327815034,1716501044379,-500.0,0.00021917,2]
[327815035,1716501044389,-500.0,0.00021917,2]
[327815036,1716501044399,-500.0,0.00021917,2]
[327815037,1716501044409,-385.9,0.00021917,2]
[327815038,1716501044419,-500.0,0.00021917,2]
[327815039,1716501044429,-500.0,0.00021917,2]
[327815040,1716501044439,-405.84921103,0.00021917,2]
[327815041,1716501044449,-500.0,0.00021917,2]
[327815043,1716501044459,-500.0,0.00021917,2]
[327815045,1716501044469,-500.0,0.00021917,2]
[327815046,1716501044479,-500.0,0.00021917,2]
[327815048,1716501044489,-324.11,0.00021917,2]
[327815049,1716501044499,-500.0,0.00021917,2]
[327815050,1716501044509,-500.0,0.00021917,2]
[327815051,1716501044518,-500.0,0.00021917,2]
[327815052,1716501044528,-500.0,0.00021917,2]
[327815053,1716501044540,-500.0,0.00021917,2]
[327815054,1716501044550,-500.0,0.00021917,2]
[327815055,1716501044561,-500.0,0.00021917,2]
[327815056,1716501044571,-500.0,0.00021917,2]
[327815057,1716501044582,-500.0,0.00021917,2]
[327815058,1716501044593,-279.16,0.00021917,2]
[327815059,1716501044604,-583.80859645,0.00021917,2]
[327815060,1716501044616,-500.0,0.00021917,2]
[327815061,1716501044626,-224.79615075,0.00021917,2]
[327815062,1716501044636,-500.0,0.00021917,2]
[327815063,1716501044646,-501.36972622,0.00021917,2]
[327815064,1716501044656,-500.0,0.00021917,2]
[327815065,1716501044666,-500.0,0.00021917,2]
[327815066,1716501044677,-500.0,0.00021917,2]
[327815067,1716501044687,-500.0,0.00021917,2]
[327815068,1716501044698,-500.0,0.00021917,2]
[327815069,1716501044713,-500.0,0.00021917,2]
[327815070,1716501044724,-500.0,0.00021917,2]
[327815071,1716501044734,-500.0,0.00021917,2]
[327815072,1716501044744,-500.0,0.00021917,2]
[327815073,1716501044754,-542.07560929,0.00021917,2]
[327815074,1716501044764,-496.37,0.00021917,2]
[327815076,1716501044773,-500.0,0.00021917,2]
[327815078,1716501044783,-500.0,0.00021917,2]
[327815080,1716501044793,-500.0,0.00021917,2]
[327815082,1716501044803,-500.0,0.00021917,2]
[327815084,1716501044812,-500.0,0.00021917,2]
[327815086,1716501044822,-500.0,0.00021917,2]
[327815088,1716501044831,-500.0,0.00021917,2]
[327815090,1716501044841,-500.0,0.00021917,2]
[327815092,1716501044850,-613.07,0.00021917,2]
[327815094,1716501044862,-500.0,0.00021917,2]
[327815096,1716501044871,-500.0,0.00021917,2]
[327815098,1716501044881,-500.0,0.00021917,2]
[327815100,1716501044890,-500.0,0.00021917,2]
[327815102,1716501044901,-500.0,0.00021917,2]
[327815104,1716501044911,-458.4907247,0.00021917,2]
[327815106,1716501044920,-500.0,0.00021917,2]
[327815108,1716501044931,-500.0,0.00021917,2]
[327815110,1716501044941,-500.0,0.00021917,2]
[327815112,1716501044951,-500.0,0.00021917,2]
[327815114,1716501044961,-500.0,0.00021917,2]
[327815116,1716501044971,-1164.45,0.00021917,2]
[327815118,1716501044982,-500.0,0.00021917,2]
[327815120,1716501044992,-500.0,0.00021917,2]
[327815123,1716501045003,-500.0,0.00021917,2]
[327815125,1716501045013,-500.0,0.00021917,2]
[327815127,1716501045023,-974.83,0.00021917,2]
[327815129,1716501045033,-500.0,0.00021917,2]
[327815131,1716501045043,-500.0,0.00021917,2]
[327815133,1716501045054,-500.0,0.00021917,2]
[327815135,1716501045063,-500.0,0.00021917,2]
[327815137,1716501045074,-500.0,0.00021917,2]
[327815139,1716501045084,-500.0,0.00021917,2]
[327815141,1716501045095,-500.0,0.00021917,2]
[327815142,1716501045104,-500.0,0.00021917,2]
[327815143,1716501045115,-500.0,0.00021917,2]
[327815144,1716501045126,-615.97555708,0.00021917,2]
[327815145,1716501045137,-400.9509581,0.00021917,2]
[327815146,1716501045146,-500.0,0.00021917,2]
[327815147,1716501045157,-500.0,0.00021917,2]
[327815148,1716501045167,-500.0,0.00021917,2]
[327815149,1716501045176,-500.0,0.00021917,2]
[327815150,1716501045186,-500.0,0.00021917,2]
[327815151,1716501045196,-500.0,0.00021917,2]
[327815152,1716501045210,-500.0,0.00021917,2]
[327815153,1716501045220,-500.0,0.00021917,2]
[327815154,1716501045229,-500.0,0.00021917,2]
[327815155,1716501045238,-500.0,0.00021917,2]
[327815156,1716501045248,-500.0,0.00021917,2]
[327815157,1716501045257,-500.0,0.00021917,2]
[327815158,1716501045267,-500.0,0.00021917,2]
[327815160,1716501045278,-500.0,0.00021917,2]
[327815162,1716501045288,-500.0,0.00021917,2]
[327815164,1716501045297,-500.0,0.00021917,2]
[327815166,1716501045307,-500.0,0.00021917,2]
[327815168,1716501045317,-500.0,0.00021917,2]
[327815170,1716501045327,-500.0,0.00021917,2]
[327815172,1716501045337,-500.0,0.00021917,2]
[327815174,1716501045347,-500.0,0.00021917,2]
[327815176,1716501045356,-500.0,0.00021917,2]
[327815178,1716501045367,-500.0,0.00021917,2]
[327815180,1716501045377,-415.23,0.00021917,2]
[327815182,1716501045386,-500.0,0.00021917,2]
[327815184,1716501045396,-500.0,0.00021917,2]
[327815186,1716501045407,-312.50350108,0.00021917,2]
[327815188,1716501045417,-161.35580052,0.00021917,2]
[327815190,1716501045427,-629.17,0.00021917,2]
[327815193,1716501045447,-500.0,0.00021917,2]
[327815195,1716501045457,-500.0,0.00021917,2]
[327815197,1716501045468,-500.0,0.00021917,2]
[327815199,1716501045478,-500.0,0.00021917,2]
[327815202,1716501045489,-481.7282996,0.00021917,2]
[327815204,1716501045499,-3431.92,0.00021917,2]
[327815206,1716501045510,-500.0,0.00021917,2]
[327815208,1716501045520,-500.0,0.00021917,2]
[327815210,1716501045531,-1344.74,0.00021917,2]
[327815212,1716501045542,-301.52,0.00021917,2]
[327815214,1716501045552,-500.0,0.00021917,2]
[327815216,1716501045563,-500.0,0.00021917,2]
[327815218,1716501045574,-500.0,0.00021917,2]
[327815220,1716501045584,-500.0,0.00021917,2]
[327815222,1716501045595,-500.0,0.00021917,2]
[327815224,1716501045605,-500.0,0.00021917,2]
[327815226,1716501045616,-507.5,0.00021917,2]
[327815228,1716501045626,-500.0,0.00021917,2]
[327815230,1716501045636,-500.0,0.00021917,2]
[327815232,1716501045646,-500.0,0.00021917,2]
[327815234,1716501045656,-500.0,0.00021917,2]
[327815236,1716501045666,-503.50972479,0.00021917,2]
[327815238,1716501045676,-155.0,0.00021917,2]
[327815240,1716501045686,-2002.4,0.00021917,2]
[327815242,1716501045696,-500.0,0.00021917,2]
[327815244,1716501045705,-500.0,0.00021917,2]
[327815246,1716501045715,-500.0,0.00021917,2]
[327815248,1716501045724,-500.0,0.00021917,2]
[327815250,1716501045734,-500.0,0.00021917,2]
[327815252,1716501045743,-500.0,0.00021917,2]
[327815254,1716501045753,-1584.52,0.00021917,2]
[327815256,1716501045763,-500.0,0.00021917,2]
[327815258,1716501045773,-500.0,0.00021917,2]
[327815260,1716501045783,-500.0,0.00021917,2]
[327815263,1716501045792,-312.88704354,0.00021917,2]
[327815265,1716501045802,-500.0,0.00021917,2]
[327815266,1716501045811,-749.98,0.00021917,2]
[327815269,1716501045821,-500.0,0.00021917,2]
[327815271,1716501045830,-2000.0,0.00021918,2]
[327815273,1716501045840,-395.62,0.00021918,2]
[327815275,1716501045850,-250.0,0.00021918,2]
[327815277,1716501045859,-222.434868,0.00021918,2]
[327815279,1716501045870,-9156.94527158,0.00022,2]
[327815281,1716501045879,-157.01594061,0.0002209,2]
[327815283,1716501045889,-291.23589238,0.0002209,2]
[327815285,1716501045899,-500.0,0.0002209,2]
[327815287,1716501045909,-500.0,0.0002209,2]
[327815289,1716501045919,-500.0,0.0002209,2]
[327815291,1716501045928,-500.0,0.0002209,2]
[327815293,1716501045938,-500.0,0.0002209,2]
[327815295,1716501045947,-249.1,0.0002209,2]
[327815297,1716501045957,-500.0,0.0002209,2]
[327815299,1716501045967,-500.0,0.0002209,2]
[327815301,1716501045976,-500.0,0.0002209,2]
[327815303,1716501045987,-500.0,0.0002209,2]
[327815305,1716501045996,-2185.04,0.0002209,2]
[327815306,1716501046006,-500.0,0.0002209,2]
[327815307,1716501046016,-10000.0,0.00022091,2]
[327815308,1716501046025,-401.6954,0.00022091,2]
[327815309,1716501046035,-77137.4434,0.00022091,2]
[327815310,1716501046045,-1000.0,0.00022091,2]
[327815311,1716501046055,-4598.04156785,0.00022169,2]
[327815312,1716501046065,-159.08274939,0.00022174,2]
[327815313,1716501046075,-155.07639621,0.00022174,2]
[327815314,1716501046084,-150.67,0.00022181,2]
[327815315,1716501046094,-336.15436069,0.00022187,2]
[327815316,1716501046104,-817.82411991,0.00022187,2]
[327815317,1716501046115,-19619.41922891,0.00022188,2]
[327815318,1716501046128,-162.07757711,0.00022189,2]
[327815319,1716501046139,-155.0,0.00022189,2]
[327815320,1716501046148,-862.15509982,0.00022189,2]
[327815321,1716501046158,-5185.19650813,0.00022189,2]
[327815322,1716501046170,-1227.04758271,0.00022189,2]
[327815323,1716501046180,-1263.02030366,0.00022189,2]
[327815324,1716501046190,-409.84120861,0.00022189,2]
[327815325,1716501046201,-155.11239796,0.00022189,2]
[327815326,1716501046211,-1773.26835727,0.00022189,2]
[327815327,1716501046221,-6238.51672136,0.00022189,2]
[327815328,1716501046231,-326.80688808,0.00022189,2]
[327815329,1716501046241,-2220.87448892,0.0002219,2]
[327815330,1716501046250,-171.93,0.00022191,2]
[327815331,1716501046260,-500.0,0.00022191,2]
[327815332,1716501046270,-500.0,0.00022191,2]
[327815333,1716501046279,-500.0,0.00022191,2]
[327815334,1716501046290,-500.0,0.00022191,2]
[327815335,1716501046300,-500.0,0.00022191,2]
[327815336,1716501046310,-331.77,0.00022191,2]
[327815337,1716501046319,-500.0,0.00022191,2]
[327815338,1716501046329,-500.0,0.00022191,2]
[327815339,1716501046339,-500.0,0.00022191,2]
[327815340,1716501046349,-500.0,0.00022191,2]
[327815341,1716501046359,-500.0,0.00022191,2]
[327815342,1716501046370,-500.0,0.00022191,2]
[327815343,1716501046379,-180.76,0.00022191,2]
[327815344,1716501046389,-500.0,0.00022191,2]
[327815345,1716501046398,-500.0,0.00022191,2]
[327815346,1716501046407,-500.0,0.00022191,2]
[327815347,1716501046417,-500.0,0.00022191,2]
[327815348,1716501046427,-500.0,0.00022191,2]
[327815349,1716501046436,-500.0,0.00022191,2]
[327815350,1716501046445,-633.3,0.00022191,2]
[327815351,1716501046455,-500.0,0.00022191,2]
[327815352,1716501046464,-500.0,0.00022191,2]
[327815353,1716501046474,-500.0,0.00022191,2]
[327815354,1716501046484,-397.30250273,0.00022191,2]
[327815355,1716501046493,-500.0,0.00022191,2]
[327815356,1716501046506,-500.0,0.00022191,2]
[327815357,1716501046516,-500.0,0.00022191,2]
[327815358,1716501046526,-500.0,0.00022191,2]
[327815359,1716501046536,-500.0,0.00022191,2]
[327815360,1716501046546,-500.0,0.00022191,2]
[327815361,1716501046555,-500.0,0.00022191,2]
[327815362,1716501046564,-500.0,0.00022191,2]
[327815363,1716501046574,-500.0,0.00022191,2]
[327815364,1716501046584,-500.0,0.00022191,2]
[327815365,1716501046594,-500.0,0.00022191,2]
[327815366,1716501046604,-500.0,0.00022191,2]
[327815367,1716501046614,-163.44,0.00022191,2]
[327815368,1716501046623,-500.0,0.00022191,2]
[327815369,1716501046633,-500.0,0.00022191,2]
[327815370,1716501046644,-234.4,0.00022191,2]
[327815371,1716501046654,-500.0,0.00022191,2]
[327815372,1716501046663,-500.0,0.00022191,2]
[327815373,1716501046673,-500.0,0.00022191,2]
[327815374,1716501046682,-500.0,0.00022191,2]
[327815382,1716501046934,-500.0,0.00022191,2]
[327815383,1716501046943,-500.0,0.00022191,2]
[327815384,1716501046953,-500.0,0.00022191,2]
[327815385,1716501046962,-500.0,0.00022191,2]
[327815386,1716501046971,-500.0,0.00022191,2]
[327815387,1716501046980,-500.0,0.00022191,2]
[327815388,1716501046989,-500.0,0.00022191,2]
[327815389,1716501046999,-500.0,0.00022191,2]
[327815390,1716501047008,-613.07,0.00022191,2]
[327815391,1716501047017,-500.0,0.00022191,2]
[327815392,1716501047026,-258.96,0.00022191,2]
[327815393,1716501047036,-500.0,0.00022191,2]
[327815394,1716501047045,-432.59948825,0.00022191,2]
[327815395,1716501047054,-500.0,0.00022191,2]
[327815396,1716501047063,-500.0,0.00022191,2]
[327815397,1716501047072,-500.0,0.00022191,2]
[327815398,1716501047082,-500.0,0.00022191,2]
[327815399,1716501047091,-500.0,0.00022191,2]
[327815400,1716501047100,-1164.45,0.00022191,2]
[327815401,1716501047111,-500.0,0.00022191,2]
[327815402,1716501047122,-500.0,0.00022191,2]
[327815403,1716501047133,-500.0,0.00022191,2]
[327815404,1716501047143,-500.0,0.00022191,2]
[327815405,1716501047152,-974.83,0.00022191,2]
[327815406,1716501047162,-500.0,0.00022191,2]
[327815407,1716501047171,-500.0,0.00022191,2]
[327815408,1716501047180,-500.0,0.00022191,2]
[327815409,1716501047190,-500.0,0.00022191,2]
[327815410,1716501047200,-500.0,0.00022191,2]
[327815411,1716501047209,-500.0,0.00022191,2]
[327815412,1716501047219,-500.0,0.00022191,2]
[327815413,1716501047229,-500.0,0.00022191,2]
[327815414,1716501047238,-554.64,0.00022191,2]
[327815415,1716501047247,-500.0,0.00022191,2]
[327815416,1716501047257,-500.0,0.00022191,2]
[327815417,1716501047266,-500.0,0.00022191,2]
[327815418,1716501047275,-500.0,0.00022191,2]
[327815419,1716501047286,-500.0,0.00022191,2]
[327815420,1716501047298,-500.0,0.00022191,2]
[327815421,1716501047308,-500.0,0.00022191,2]
[327815422,1716501047317,-168.55,0.00022191,2]
[327815423,1716501047328,-500.0,0.00022191,2]
[327815424,1716501047338,-500.0,0.00022191,2]
[327815425,1716501047347,-500.0,0.00022191,2]
[327815426,1716501047357,-566.43371626,0.00022191,2]
[327815427,1716501047367,-500.0,0.00022191,2]
[327815428,1716501047375,-500.0,0.00022191,2]
[327815429,1716501047384,-500.0,0.00022191,2]
[327815430,1716501047393,-500.0,0.00022191,2]
[327815431,1716501047403,-500.0,0.00022191,2]
[327815432,1716501047413,-500.0,0.00022191,2]
[327815433,1716501047422,-500.0,0.00022191,2]
[327815434,1716501047431,-629.17,0.00022191,2]
[327815435,1716501047440,-500.0,0.00022191,2]
[327815436,1716501047450,-500.0,0.00022191,2]
[327815437,1716501047459,-500.0,0.00022191,2]
[327815438,1716501047468,-500.0,0.00022191,2]
[327815439,1716501047477,-3431.92,0.00022191,2]
[327815440,1716501047487,-500.0,0.00022191,2]
[327815441,1716501047496,-500.0,0.00022191,2]
[327815442,1716501047506,-1344.74,0.00022191,2]
[327815443,1716501047516,-500.0,0.00022191,2]
[327815444,1716501047525,-500.0,0.00022191,2]
[327815445,1716501047534,-500.0,0.00022191,2]
[327815446,1716501047543,-500.0,0.00022191,2]
[327815447,1716501047553,-151.76,0.00022191,2]
[327815448,1716501047563,-507.5,0.00022191,2]
[327815449,1716501047572,-500.0,0.00022191,2]
[327815450,1716501047581,-414.14,0.00022191,2]
[327815451,1716501047591,-235.53530127,0.00022191,2]
[327815452,1716501047600,-2002.4,0.00022191,2]
[327815453,1716501047610,-500.0,0.00022191,2]
[327815454,1716501047620,-151.44358764,0.00022191,2]
[327815455,1716501047630,-500.0,0.00022191,2]
[327815456,1716501047639,-500.0,0.00022191,2]
[327815457,1716501047648,-500.0,0.00022191,2]
[327815458,1716501047657,-1584.52,0.00022191,2]
[327815459,1716501047666,-203.18,0.00022191,2]
[327815460,1716501047676,-749.98,0.00022191,2]
[327815461,1716501047685,-500.0,0.00022191,2]
[327815462,1716501047694,-157.59898109,0.00022199,2]
[327815463,1716501047704,-154.03762695,0.00022259,2]
[327815464,1716501047713,-1000.0,0.00022264,2]
[327815465,1716501047722,-7500.0,0.00022264,2]
[327815466,1716501047732,-1808.14442913,0.00022297,2]
[327815467,1716501047742,-150.44191754,0.00022323,2]
[327815468,1716501047751,-161.44222683,0.00022331,2]
[327815469,1716501047762,-151.0,0.00022332,3]
[327815470,1716501047772,-500.0,0.00022364,2]
[327815471,1716501047781,-500.0,0.00022364,2]
[327815472,1716501047790,-500.0,0.00022364,2]
[327815473,1716501047799,-498.45,0.00022364,2]
[327815474,1716501047808,-500.0,0.00022364,2]
[327815475,1716501047819,-500.0,0.00022364,2]
[327815476,1716501047828,-500.0,0.00022364,2]
[327815477,1716501047837,-151.66,0.00022364,2]
[327815478,1716501047847,-500.0,0.00022364,2]
[327815479,1716501047856,-2185.04,0.00022364,2]
[327815480,1716501047866,-500.0,0.00022364,2]
[327815481,1716501047875,-150.70209809,0.00022451,2]
[327815482,1716501047884,-155.0,0.00022462,2]
[327815483,1716501047894,-5512.46730855,0.00022462,2]
[327815484,1716501047903,-324.77451672,0.00022462,2]
[327815485,1716501047912,-618.92358897,0.00022463,2]
[327815486,1716501047922,-552.13,0.00022465,2]
[327815487,1716501047931,-500.0,0.00022465,2]
[327815488,1716501047943,-500.0,0.00022465,2]
[327815489,1716501047954,-500.0,0.00022465,2]
[327815490,1716501047963,-500.0,0.00022465,2]
[327815491,1716501047972,-500.0,0.00022465,2]
[327815492,1716501047981,-500.0,0.00022465,2]
[327815493,1716501047991,-500.0,0.00022465,2]
[327815494,1716501047999,-500.0,0.00022465,2]
[327815495,1716501048009,-500.0,0.00022465,2]
[327815496,1716501048020,-500.0,0.00022465,2]
[327815497,1716501048029,-500.0,0.00022465,2]
[327815498,1716501048039,-500.0,0.00022465,2]
[327815499,1716501048048,-500.0,0.00022465,2]
[327815500,1716501048057,-500.0,0.00022465,2]
[327815501,1716501048067,-205.94903723,0.00022465,2]
[327815502,1716501048076,-500.0,0.00022465,2]
[327815503,1716501048086,-500.0,0.00022465,2]
[327815504,1716501048095,-320.01,0.00022465,2]
[327815505,1716501048105,-500.0,0.00022465,2]
[327815506,1716501048115,-500.0,0.00022465,2]
[327815507,1716501048129,-500.0,0.00022465,2]
[327815508,1716501048139,-500.0,0.00022465,2]
[327815509,1716501048148,-500.0,0.00022465,2]
[327815510,1716501048158,-500.0,0.00022465,2]
[327815511,1716501048167,-500.0,0.00022465,2]
[327815512,1716501048176,-500.0,0.00022465,2]
[327815513,1716501048185,-500.0,0.00022465,2]
[327815514,1716501048196,-346.37687798,0.00022465,2]
[327815515,1716501048206,-500.0,0.00022465,2]
[327815516,1716501048216,-500.0,0.00022465,2]
[327815517,1716501048225,-339.32922671,0.00022465,2]
[327815518,1716501048235,-500.0,0.00022465,2]
[327815519,1716501048244,-500.0,0.00022465,2]
[327815520,1716501048254,-500.0,0.00022465,2]
[327815521,1716501048263,-500.0,0.00022465,2]
[327815522,1716501048273,-500.0,0.00022465,2]
[327815523,1716501048282,-500.0,0.00022465,2]
[327815524,1716501048292,-500.0,0.00022465,2]
[327815525,1716501048301,-500.0,0.00022465,2]
[327815526,1716501048310,-500.0,0.00022465,2]
[327815527,1716501048320,-234.85,0.00022465,2]
[327815528,1716501048330,-613.07,0.00022465,2]
[327815529,1716501048340,-500.0,0.00022465,2]
[327815530,1716501048349,-500.0,0.00022465,2]
[327815531,1716501048359,-500.0,0.00022465,2]
[327815532,1716501048369,-500.0,0.00022465,2]
[327815533,1716501048378,-500.0,0.00022465,2]
[327815534,1716501048388,-500.0,0.00022465,2]
[327815535,1716501048397,-1164.45,0.00022465,2]
[327815536,1716501048406,-500.0,0.00022465,2]
[327815537,1716501048416,-500.0,0.00022465,2]
[327815538,1716501048425,-500.0,0.00022465,2]
[327815539,1716501048434,-500.0,0.00022465,2]
[327815540,1716501048445,-974.83,0.00022465,2]
[327815541,1716501048456,-500.0,0.00022465,2]
[327815542,1716501048467,-235.56,0.00022465,2]
[327815543,1716501048476,-325.92,0.00022465,2]
[327815544,1716501048485,-500.0,0.00022465,2]
[327815545,1716501048496,-437.83,0.00022465,2]
[327815546,1716501048504,-500.0,0.00022465,2]
[327815547,1716501048514,-500.0,0.00022465,2]
[327815548,1716501048523,-500.0,0.00022465,2]
[327815549,1716501048531,-500.0,0.00022465,2]